Cogmind - Beta 15 @@@ ROGUE MODE // 2025.05.20 @ 17:01:13 Player: Spitfire Result: Self-destructed Performance ------------- Evolutions (2) 1000 Regions Visited (5) 1000 Robots Destroyed (0) 0 Value Destroyed (10) 10 Prototype IDs (1) 20 Alien Tech Used (0) 0 Bonus (470) 470 TOTAL SCORE: 2500 Bonus ------- Pacifist 470 Cogmind --------- Core Integrity 468/550 Matter 125/300 Energy 78/100 System Corruption 0% Temperature Cool (0) Movement Rolling (115) Ox1 Location -8/Storage Parts ------- > --- POWER (1) -------- (None) > --- PROPULSION (3) --- Compact Wheel Aerolev Unit Flight Unit > --- UTILITY (5) ------ Large Storage Unit Improved Signal Interpreter Light Armor Plating Light Armor Plating Drone Bay (0/2) > --- WEAPON (2) ------- (None) > --- INVENTORY (15) --- Light Nuclear Core Structural Scanner Seismic Detector Core Shielding Utility Shielding Peak State ------------ > --- POWER ------------ Light Nuclear Core > --- PROPULSION ------- Airjet Airjet Aerolev Unit > --- UTILITY ---------- Large Storage Unit Improved Signal Interpreter Light Armor Plating > --- WEAPON ----------- (None) > --- INVENTORY -------- Light Ion Engine Wheel Wheel Compact Wheel Flight Unit Structural Scanner Seismic Detector Core Shielding Utility Shielding Light Armor Plating Light Armor Plating [Rating: 19] Favorites ----------- Power Ion Engine Engine Ion Engine Power Core Light Nuclear Core Propulsion Wheel Wheel Wheel Hover Unit Aerolev Unit Flight Unit Flight Unit Utility Large Storage Unit Device Sensor Array Storage Large Storage Unit Processor Signal Interpreter Protection Medium Armor Plating Weapon Mining Laser Special Weapon Mining Laser Build | -11 -10 -10 -9 -8 -8 ------- Run | Yrd Mat Min Mat Mat Sto Slots Evolved 4 | . . . 2 2 . Power . | . . . . . . Propulsion 1 | . . . . 1 . Utility 3 | . . . 2 1 . Weapon . | . . . . . . Parts Attached 29 | 4 4 1 7 7 6 Power 3 | 1 . . . 1 1 Engine 2 | 1 . . . . 1 Core 1 | . . . . 1 . Reactor . | . . . . . . Propulsion 10 | 2 . . 3 3 2 Treads . | . . . . . . Leg . | . . . . . . Wheel 6 | 2 . . 3 . 1 Hover 3 | . . . . 3 . Flight 1 | . . . . . 1 Utility 14 | 1 2 1 4 3 3 Device 3 | . 1 1 . . 1 Storage 2 | 1 1 . . . . Processor 2 | . . . 1 1 . Hackware . | . . . . . . Protection 7 | . . . 3 2 2 Artifact . | . . . . . . Weapon 2 | . 2 . . . . Energy Gun . | . . . . . . Energy Cannon . | . . . . . . Ballistic Gun . | . . . . . . Ballistic Cannon . | . . . . . . Launcher . | . . . . . . Special Weapon 2 | . 2 . . . . Impact Weapon . | . . . . . . Slashing Weapon . | . . . . . . Piercing Weapon . | . . . . . . Special Melee Weapon . | . . . . . . Unidentified Prototypes 1 | . . . . 1 . Parts Lost 16 | . 1 . 4 7 4 Power 2 | . . . 1 . 1 Propulsion 7 | . . . 1 3 3 Utility 5 | . . . 1 4 . Weapon 2 | . 1 . 1 . . Highest Loss Streak 7 | . 1 . 4 7 2 To Critical Strikes . | . . . . . . Average Backups 9 | . 4 8 12 12 7 Power 1 | . 1 1 1 1 1 Propulsion 3 | . . 1 4 5 2 Utility 5 | . 2 6 6 6 3 Weapon . | . . . . . . Tool/Special . | . . . . . . Unused Backups 2 | . . . . . 2 Power . | . . . . . . Propulsion . | . . . . . . Utility 2 | . . . . . 2 Weapon . | . . . . . . Tool/Special . | . . . . . . Average Slot Usage (%) 80 | . 79 85 84 77 72 Engine 8 | . 14 14 9 . 6 Core 1 | . . . . 8 . Wheel 23 | . 28 28 22 24 9 Hover 1 | . . . . . 13 Device 10 | . 11 14 11 8 3 Storage 11 | . 14 14 11 9 9 Processor 6 | . . . 11 9 9 Protection 9 | . . . 10 17 21 Special Weapon 7 | . 10 14 9 . . Peak Build Rating 19 | 4 7 6 10 19 17 Average Rating 9 | 3 6 6 9 13 15 On Entrance 6 | . 4 6 6 8 12 Naked Turns . | . . . . . . Heaviest Build 40 | 10 27 27 34 40 35 Greatest Support 30 | 26 26 26 26 30 20 Greatest Overweight (x) 3 | . 1 1 1 2 3 Average Overweight (x) . | . . 1 1 . 1 Largest Inventory Capacity 15 | 8 15 15 15 15 15 Average Capacity 14 | 6 11 15 15 15 15 Most Carried 15 | 1 8 9 15 13 11 Average Carried 9 | . 4 8 12 12 7 Final Capacity 15 | 8 15 15 15 15 15 Final Carried 14 | 1 8 9 14 12 5 Class Distribution -------------------- 100% | Mutant Dominant Class ---------------- Mutant | -10/Materials Mutant | -10/Mines Mutant | -9/Materials Mutant | -8/Materials Mutant | -8/Storage Resources | -11 -10 -10 -9 -8 -8 ----------- Run | Yrd Mat Min Mat Mat Sto Matter Collected 285 | 221 . 64 . . . Remotely . | . . . . . . Salvage Created . | . . . . . . Parts . | . . . . . . Haulers Intercepted . | . . . . . . Recyclers Shooed . | . . . . . . Parts Field Recycled . | . . . . . . Retrieved Matter . | . . . . . . Parts Self-Destructed . | . . . . . . Prevented . | . . . . . . Kills | -11 -10 -10 -9 -8 -8 ------- Run | Yrd Mat Min Mat Mat Sto Combat Hostiles Destroyed . | . . . . . . Classes Destroyed . | . . . . . . Best Kill Streak . | . . . . . . Combat Bots Only . | . . . . . . Max Kills in Single Turn . | . . . . . . Gunslinging . | . . . . . . Exploded . | . . . . . . Melee . | . . . . . . Uniques/NPCs Destroyed . | . . . . . . Combat | -11 -10 -10 -9 -8 -8 -------- Run | Yrd Mat Min Mat Mat Sto Hostile Shots Fired 221 | . 6 3 98 50 64 Missed 77 | . 3 1 38 14 21 Hits 144 | . 3 2 60 36 43 Projectile 144 | . 3 2 60 36 43 Critical Strikes 5 | . . . 1 2 2 Damage Taken 1551 | . 87 23 542 545 354 Core 280 | . 34 . 164 58 24 Absorbed by Shields . | . . . . . . Redirected to Shielding 2 | . . . . . 2 Core Remaining (%) 81 | 100 . 86 59 . . Volleys Fired 8 | . . 1 7 . . Largest 1 | . . 1 1 . . Hottest 100 | . . 100 100 . . Shots Fired 8 | . . 1 7 . . Gun . | . . . . . . Cannon . | . . . . . . Launcher . | . . . . . . Special 8 | . . 1 7 . . Kinetic . | . . . . . . Thermal 8 | . . 1 7 . . Explosive . | . . . . . . Electromagnetic . | . . . . . . Robot Hit Streak . | . . . . . . Robot Miss Streak . | . . . . . . Penetration Max . | . . . . . . Secondary Targets . | . . . . . . Shots Hit Robots . | . . . . . . Core Hits . | . . . . . . Critical Kills . | . . . . . . Critical Parts Destroyed . | . . . . . . Critical Strikes . | . . . . . . Melee Attacks . | . . . . . . Impact . | . . . . . . Slashing . | . . . . . . Piercing . | . . . . . . Sneak Attacks . | . . . . . . Combat Hostiles . | . . . . . . Follow-up Attacks . | . . . . . . Damage Inflicted . | . . . . . . Guns . | . . . . . . Cannons . | . . . . . . Explosions . | . . . . . . Melee . | . . . . . . Ramming . | . . . . . . Kinetic . | . . . . . . Thermal . | . . . . . . Explosive . | . . . . . . Electromagnetic . | . . . . . . Impact . | . . . . . . Slashing . | . . . . . . Piercing . | . . . . . . Highest Corruption . | . . . . . . Average Corruption . | . . . . . . Corruption Purged . | . . . . . . Corruption Blocked . | . . . . . . Overload Shots . | . . . . . . Overflow Damage . | . . . . . . Projectiles . | . . . . . . Explosions . | . . . . . . Melee . | . . . . . . Knockbacks . | . . . . . . Impact . | . . . . . . Kinetic . | . . . . . . Secondary . | . . . . . . Self-Inflicted Damage . | . . . . . . Shots . | . . . . . . Rammed . | . . . . . . Targets Rammed . | . . . . . . Kicked . | . . . . . . Crushed . | . . . . . . Highest Temperature 40 | . . 20 40 18 . Average Temperature 18 | . . 12 20 11 . Received Heat Transfer 360 | . 27 12 114 198 9 Siege Activations . | . . . . . . Martial Activations . | . . . . . . Shielding Activations . | . . . . . . Robots Disrupted . | . . . . . . Combat Hostiles . | . . . . . . Robots Corrupted . | . . . . . . Combat Hostiles . | . . . . . . Parts Fried . | . . . . . . Impact Corruptions . | . . . . . . Robots Melted . | . . . . . . Combat Hostiles . | . . . . . . Parts Melted . | . . . . . . Heat Transferred . | . . . . . . Parts Sabotaged . | . . . . . . Parts Stolen . | . . . . . . Parts Stripped . | . . . . . . Power Chain Reactions . | . . . . . . Alert | -11 -10 -10 -9 -8 -8 ------- Run | Yrd Mat Min Mat Mat Sto Maximum Alert Level . | . . . . . . Low Security (%) 100 | 100 100 100 100 100 100 Level 1 . | . . . . . . Level 2 . | . . . . . . Level 3 . | . . . . . . Level 4 . | . . . . . . Level 5 . | . . . . . . High Security . | . . . . . . Max Security . | . . . . . . Peak Influence 81 | . 33 30 43 81 25 Initial 25 | . . 12 . . 25 Average 6 | . 4 4 5 10 8 Influence Increases 375 | . 68 31 70 191 15 Successful Hack 24 | . 8 . 5 11 . Disable Machine 15 | . 15 . . . . Destroy Structure 6 | . . 1 5 . . Lose Combat Pursuer 330 | . 45 30 60 180 15 Influence Decreases 375 | . 35 64 70 130 76 Entered New Map 57 | . . 21 . . 36 Time Decay 218 | . 35 43 55 60 25 Lost Part 100 | . . . 15 70 15 Squads Dispatched 4 | . 1 . 1 1 1 Investigation . | . . . . . . Extermination . | . . . . . . Reinforcement 4 | . 1 . 1 1 1 Assault . | . . . . . . Garrison . | . . . . . . Intercept . | . . . . . . Searches Triggered . | . . . . . . Construction Impeded . | . . . . . . Haulers Reinforced . | . . . . . . Active Scanning Responses . | . . . . . . Cargo Convoy Interrupts . | . . . . . . Stealth | -11 -10 -10 -9 -8 -8 --------- Run | Yrd Mat Min Mat Mat Sto Distress Signals 1 | . . . . 1 . Communications Jammed . | . . . . . . Distress Signals . | . . . . . . Times Spotted 53 | . 5 4 13 24 7 Peak Tracking Total 16 | . 4 2 7 16 6 Tactical Retreats 11 | . 2 1 3 4 1 Traps | -11 -10 -10 -9 -8 -8 ------- Run | Yrd Mat Min Mat Mat Sto Traps Triggered 1 | . 1 . . . . Indirectly . | . . . . . . Trap Hack Attempts . | . . . . . . Triggered . | . . . . . . Disarmed . | . . . . . . Reprogrammed . | . . . . . . Reused . | . . . . . . Traps Extracted . | . . . . . . Installed . | . . . . . . Triggered . | . . . . . . Machines | -11 -10 -10 -9 -8 -8 ---------- Run | Yrd Mat Min Mat Mat Sto Machines Disabled 1 | . 1 . . . . Max in Single Turn 1 | . 1 . . . . Machines Repaired . | . . . . . . Machines Dismantled 1 | . 1 . . . . Machines Sabotaged . | . . . . . . Overloaded Fab Kills . | . . . . . . Hacking | -11 -10 -10 -9 -8 -8 --------- Run | Yrd Mat Min Mat Mat Sto Machines Accessed 6 | . 1 . 2 2 1 Terminals 6 | . 1 . 2 2 1 Fabricators . | . . . . . . Repair Stations . | . . . . . . Recycling Units . | . . . . . . Scanalyzers . | . . . . . . Garrison Access . | . . . . . . Total Hacks 19 | . 5 . 7 6 1 Successful 7 | . 3 . 1 2 1 Failed 12 | . 2 . 6 4 . Catastrophic 3 | . . . 1 2 . Database Lockouts . | . . . . . . Manual 13 | . 4 . 3 6 . Terminals 19 | . 5 . 7 6 1 Fabricators . | . . . . . . Repair Stations . | . . . . . . Recycling Units . | . . . . . . Scanalyzers . | . . . . . . Garrison Access . | . . . . . . Terminal Hacks 3 | . 2 . . . 1 Open Door 1 | . . . . . 1 Branch Access Points 1 | . 1 . . . . Locate Traps 1 | . 1 . . . . Fabricator Hacks . | . . . . . . Repair Station Hacks . | . . . . . . Recycling Unit Hacks . | . . . . . . Scanalyzer . | . . . . . . Garrison Access Hacks . | . . . . . . Unauthorized Hacks 4 | . 1 . 1 2 . Terminals 4 | . 1 . 1 2 . Botnet 3 | . 1 . 1 1 . Operators 1 | . . . . 1 . Fabricators . | . . . . . . Repair Stations . | . . . . . . Recycling Units . | . . . . . . Scanalyzers . | . . . . . . Garrison Access . | . . . . . . Data Cores Recovered . | . . . . . . Used . | . . . . . . Hacking Detections 6 | . 1 . 2 2 1 Full Trace Events 1 | . . . . 1 . Feedback Events . | . . . . . . Feedback Blocked . | . . . . . . Robot Schematics Acquired . | . . . . . . Robots Built . | . . . . . . Authchips . | . . . . . . Time . | . . . . . . Total Robot Build Rating . | . . . . . . Part Schematics Acquired . | . . . . . . Parts Built . | . . . . . . Authchips . | . . . . . . Time . | . . . . . . Total Part Build Rating . | . . . . . . Parts Repaired . | . . . . . . Time . | . . . . . . Parts Recycled . | . . . . . . Recycled Matter . | . . . . . . Retrieved Matter . | . . . . . . Retrieved Components . | . . . . . . Parts Scanalyzed . | . . . . . . Part Schematics Acquired . | . . . . . . Parts Damaged . | . . . . . . Bothacking | -11 -10 -10 -9 -8 -8 ------------ Run | Yrd Mat Min Mat Mat Sto Used RIF Installer . | . . . . . . Robots Hacked . | . . . . . . Non-combat . | . . . . . . Combat . | . . . . . . Robot Hacks Applied . | . . . . . . Relay Couplers Released . | . . . . . . Fabnet Peak Effective % . | . . . . . . Robots Rewired . | . . . . . . Allies Hacked . | . . . . . . Hacks Repelled . | . . . . . . Allies | -11 -10 -10 -9 -8 -8 -------- Run | Yrd Mat Min Mat Mat Sto Total Allies . | . . . . . . Largest Group . | . . . . . . Highest-Rated Group . | . . . . . . Highest-Rated Ally . | . . . . . . Total Orders 3 | . . . . . 3 ROAM 1 | . . . . . 1 EXPLORE 2 | . . . . . 2 Ally Attacks . | . . . . . . Total Damage . | . . . . . . Kills . | . . . . . . Allies Corrupted . | . . . . . . Allies Melted . | . . . . . . Intel | -11 -10 -10 -9 -8 -8 ------- Run | Yrd Mat Min Mat Mat Sto Active Infowar (turns) 1008 | . 174 238 327 269 . Sensors 814 | . . 218 327 269 . Structural 194 | . 174 20 . . . Robot Analysis Total . | . . . . . . Derelict Logs Recovered 2 | . . 2 . . . Drone Launches 4 | . . . . . 4 Drone Recoveries 2 | . . . . . 2 Exploration | -11 -10 -10 -9 -8 -8 ------------- Run | Yrd Mat Min Mat Mat Sto Turns Passed 1201 | 31 204 238 327 288 113 Spaces Moved 1038 | 28 190 200 253 296 71 Core 1 | 1 . . . . . Treads . | . . . . . . Legs . | . . . . . . Wheels 1020 | 27 190 200 253 279 71 Hover 17 | . . . . 17 . Flight . | . . . . . . Fastest Speed 48 | 50 90 105 95 48 95 Average Speed 97 | 87 94 105 95 93 109 Slowest Speed 125 | 90 105 105 105 111 125 Overloaded Moves . | . . . . . . Propulsion Burnouts . | . . . . . . Robots Hopped . | . . . . . . Potential Cave-ins . | . . . . . . Cave-ins Triggered . | . . . . . . Exploration Rate (%) 31 | 4 48 56 30 37 15 Regions Visited 5 Branch Regions 2 Pre-discovered Areas . | . . . . . . Known Exits Taken 3 | . 1 . 1 1 . Unknown Exits Taken 2 | 1 . 1 . . . Scrap Searched 1 | . . 1 . . . Spaces Dug 7 | . . 1 6 . . Terrain Destroyed 7 | . . 1 6 . . Melee . | . . . . . . Projectile 7 | . . 1 6 . . AOE . | . . . . . . Terrain Rammed . | . . . . . . Walls Destroyed . | . . . . . . Machines Disabled . | . . . . . . Actions | -11 -10 -10 -9 -8 -8 --------- Run | Yrd Mat Min Mat Mat Sto Total 1190 | 32 205 224 316 306 107 Wait 90 | . . 22 44 . 24 Move 1033 | 27 189 199 252 295 71 Hop . | . . . . . . Pick Up 17 | 1 7 1 6 2 . Fast Attach 9 | 4 3 . . 1 1 Attach 18 | . . . 4 5 9 Detach 3 | . . . . 1 2 Swap 7 | . 1 1 3 2 . Drop 1 | . 1 . . . . Fire 8 | . . 1 7 . . Melee . | . . . . . . Ram . | . . . . . . Kick . | . . . . . . Crush . | . . . . . . Escape Stasis . | . . . . . . Rewire . | . . . . . . Trap . | . . . . . . Miscellaneous 4 | . 4 . . . . Route ------- -11/Scrapyard -10/Materials (discovered 2 exits: *Mat / *Min) -10/Mines -9/Materials (discovered 2 exits: *Mat x2) -8/Materials -8/Storage History --------- Turn | Location | Event 14 | -11/Scrapyard | Discovered new exit (range 16) 32 | -11/Scrapyard | Entered Materials 149 | -10/Materials | Discovered new exit (range 16) 196 | -10/Materials | Identified exit to Mines 236 | -10/Materials | Entered Mines 304 | -10/Mines | Learned Materials terminal intel 315 | -10/Mines | Build established: Mutant 350 | -10/Mines | Learned 2 Materials zone layouts 433 | -10/Mines | Discovered new exit (range 10) 445 | -10/Mines | Joined a pair of Derelicts in attacking an 0b10 outpost 474 | -10/Mines | Entered Materials 474 | -9/Materials | Evolved 2 slots: Utility x2 475 | -9/Materials | Identified exit to Materials 476 | -9/Materials | Loaded intel: 11 terminal locations 790 | -9/Materials | Discovered exit to Materials (range 13) 801 | -9/Materials | Entered another Materials area 801 | -8/Materials | Evolved 2 slots: Propulsion x1, Utility x1 819 | -8/Materials | Lost 4 parts (1p1n1u1w) 1068 | -8/Materials | Discovered new exit (range 15) 1088 | -8/Materials | Identified exit to Storage 1089 | -8/Materials | Entered Storage 1116 | -8/Storage | Lost 7 parts (3n4u) 1202 | -8/Storage | Self-destructed Last Messages --------------- 01157_ Wheel destroyed. 01157_ Critical hit (Destroy). 01158_ K-01 Serf collects debris. 01159_ ALERT: Hostiles spotted, dispatching reinforcements to Terminal S008. 01161_ Connecting with Door Terminal... >>Open(Door) Sealed Heavy Doors opened. 01164_ Acquired Drone Bay. 01166_ Drone released from Drone Bay. 01171_ Drone retrieved by Drone Bay (repair cost: 9). 01173_ S-10 Pest destroyed. 01173_ Drone retrieved by Drone Bay (repair cost: 9). 01177_ Drone released from Drone Bay. 01183_ Drone destroyed. 01184_ K-01 Serf collects debris. 01187_ Drone destroyed. 01191_ K-01 Serf collects debris. 01195_ Lgt. Ion Engine destroyed. 01196_ Wheel destroyed. Map ----- +----------------------------------------------------+ | ???????????????????????????????????????? | | ???????????????????????????????????????? | | ???????????????????????????????????????? | | ???????????????????????????????????????? | | ???????????????????????????????????????? | | ???????????????????????????????????????? | | ???????????????????????????????????????? | | ???????????????????????????????????????? | | ???????????????????????????????????????? | | ???????????????????????????????????????? | | ???????????????????????????????????????? | | ???????????????????????????????????????? | | ???????????????????????????????????????? | | ???????????????????????????????????????? | | ???????????????????????????????????????? | | ???????????????????????????????????????? | | ???????????????????????????????????????? | | ???????????????????????????????????????? | | ???????????????????????????????????????? | | ???????????????????????????????????????? | | ???????????????????????????????????????? | | ??????????????#####????????????????????? | | ??????????????#! !#????????????????????? | | ??????????????#! !#????????????????????? | | ??????????????#! !#????????????????????? | | ??????????????#@ #????????????????????? | | ?????????????###s##????????????????????? | | ?????????????#T YY#????????????????????? | | ??????????#??####s############ #???? | | ??????##### ###?#k #???? | | ??????# ?# +???? | | ??????# ! # #???? | | ??????" # ########## #???? | | ?????????"" """ + #?????????????#????? | | ?????????"" """ # #??????????????????? | | ?????????"" """ # #??????????????????? | | ????????? ?# #??????????????????? | | ????????? ?# #??????????????????? | | ????????######### #################### | | ?????????# | | ?????????# | | ?????????# | | ?????????############################### | | ???????????????????????????????????????? | | ???????????????????????????????????????? | | ???????????????????????????????????????? | | | | | | | | | +----------------------------------------------------+ Best States ------------- Heat Dissipation 31 Energy Generation 14 Energy Capacity 250 Matter Stores 300 Matter Capacity 300 Sight Range 16 Robot Scan Range 14 Terrain Scan Density 10 Armor Coverage 450 Core Shielding 20 Evasion (%) 45 Item Schematics ----------------- None Robot Schematics ------------------ None Fabricated ------------ Nothing Repaired ---------- Nothing Alien Tech Used ----------------- None Achievements -------------- None Challenges ------------ None Game ------ Seed EnergyLayeredProjector Manual? 0 Play Time 00:19:47 Cumulative 34.0 hours Start 2025.05.20 @ 16:43:44 End 2025.05.20 @ 17:01:13 Sessions 1 Manual Loads 0 Difficulty Rogue Special Mode None Game No. 21 Rogue 21 Adventurer 0 Explorer 0 Win Type - Total 3 Types 3/0/0/0/0/0/0/0/0/0 Lore% 21 Gallery% 31 Achievement% 28 Wizard Run 0 Options --------- Layout 0 ASCII 0 Keyboard 0 Movement Mouse Keybinds 0 Fullscreen 2 Font 18/Terminus Map View 76x50 Zoom Use 1% Tactical HUD 1 Map Filters NONE Filters NONE Steam 1 RUN: b7e18c21-6af9-48f2-9b3c-f614cdcdc2c6